[Event "Titled Tuesday Blitz August 02 Late 2022"]
[White "Kamsky, Gata"]
[Black "Harvey, Marcus R"]
[WhiteFideId "2000024"]
[BlackFideId "400092"]
[WhiteElo "2645"]
[BlackElo "2485"]
[Result "1/2-1/2"]
[Round "05"]
[TimeControl "180+1"]
[Date "2022.08.02"]
[WhiteClock "0:00:14"]
[BlackClock "0:00:06"]

1. e4 {[%clk 0:03:00]}  c6 {[%clk 0:02:58]} 2. d4 {[%clk 0:02:56]}  d5 {[%clk 0:02:58]} 3. exd5 {[%clk 0:02:56]}  cxd5 {[%clk 0:02:58]} 4. Bd3 {[%clk 0:02:56]}  Nc6 {[%clk 0:02:58]} 5. c3 {[%clk 0:02:55]}  Nf6 {[%clk 0:02:58]} 6. Bf4 {[%clk 0:02:54]}  Bg4 {[%clk 0:02:58]} 7. Qb3 {[%clk 0:02:51]}  Qd7 {[%clk 0:02:58]} 8. Nd2 {[%clk 0:02:50]}  e6 {[%clk 0:02:59]} 9. Ngf3 {[%clk 0:02:47]}  Bd6 {[%clk 0:02:59]} 10. Bg3 {[%clk 0:02:45]}  O-O {[%clk 0:02:49]} 11. O-O {[%clk 0:02:45]}  a6 {[%clk 0:02:25]} 12. a4 {[%clk 0:02:43]}  Qc7 {[%clk 0:02:06]} 13. Rfe1 {[%clk 0:02:41]}  Bxg3 {[%clk 0:02:04]} 14. hxg3 {[%clk 0:02:40]}  Bxf3 {[%clk 0:01:53]} 15. Nxf3 {[%clk 0:02:38]}  Rfb8 {[%clk 0:01:54]} 16. Qa3 {[%clk 0:02:35]}  Qe7 {[%clk 0:01:41]} 17. Qxe7 {[%clk 0:02:32]}  Nxe7 {[%clk 0:01:42]} 18. Ne5 {[%clk 0:02:26]}  Nc6 {[%clk 0:01:31]} 19. Nxc6 {[%clk 0:02:19]}  bxc6 {[%clk 0:01:32]} 20. b4 {[%clk 0:02:18]}  a5 {[%clk 0:01:32]} 21. Reb1 {[%clk 0:02:18]}  axb4 {[%clk 0:01:29]} 22. Rxb4 {[%clk 0:02:14]}  Nd7 {[%clk 0:01:26]} 23. a5 {[%clk 0:02:12]}  c5 {[%clk 0:01:24]} 24. Rxb8+ {[%clk 0:01:53]}  Rxb8 {[%clk 0:01:23]} 25. dxc5 {[%clk 0:01:45]}  Nxc5 {[%clk 0:01:22]} 26. Bf1 {[%clk 0:01:38]}  Kf8 {[%clk 0:01:14]} 27. a6 {[%clk 0:01:38]}  Ke7 {[%clk 0:01:14]} 28. g4 {[%clk 0:01:29]}  h6 {[%clk 0:01:10]} 29. f3 {[%clk 0:01:28]}  Kd6 {[%clk 0:01:10]} 30. Kf2 {[%clk 0:01:26]}  Kc7 {[%clk 0:01:05]} 31. Ke3 {[%clk 0:01:25]}  Ra8 {[%clk 0:01:03]} 32. f4 {[%clk 0:01:15]}  g5 {[%clk 0:01:01]} 33. g3 {[%clk 0:01:13]}  Kb6 {[%clk 0:01:01]} 34. Rb1+ {[%clk 0:01:13]}  Kc6 {[%clk 0:00:56]} 35. Ra1 {[%clk 0:01:10]}  Kb6 {[%clk 0:00:56]} 36. Rb1+ {[%clk 0:00:31]}  Kc6 {[%clk 0:00:55]} 37. Bb5+ {[%clk 0:00:28]}  Kc7 {[%clk 0:00:53]} 38. Kd4 {[%clk 0:00:26]}  Kd6 {[%clk 0:00:49]} 39. Rh1 {[%clk 0:00:23]}  Nxa6 {[%clk 0:00:43]} 40. Rxh6 {[%clk 0:00:22]}  Nc5 {[%clk 0:00:30]} 41. Rh7 {[%clk 0:00:18]}  Rb8 {[%clk 0:00:23]} 42. Be2 {[%clk 0:00:17]}  Rb2 {[%clk 0:00:23]} 43. Ke3 {[%clk 0:00:16]}  Ne4 {[%clk 0:00:11]} 44. Rxf7 {[%clk 0:00:15]}  Nxc3 {[%clk 0:00:11]} 45. Bf3 {[%clk 0:00:14]}  Rb3 {[%clk 0:00:10]} 46. Kf2 {[%clk 0:00:14]}  Rb2+ {[%clk 0:00:07]} 47. Ke3 {[%clk 0:00:14]}  Rb3 {[%clk 0:00:07]} 48. Kf2 {[%clk 0:00:14]}  Rb2+ {[%clk 0:00:06]} 49. Ke3 {[%clk 0:00:14]} 1/2-1/2


[Site "https://www.chess.com"]

[Event "Titled Tuesday Blitz August 02 Late 2022"]
[White "Lin, Dachey"]
[Black "Shimanov, Aleksandr"]
[WhiteFideId "2029650"]
[BlackFideId "4198603"]
[WhiteElo "2313"]
[BlackElo "2605"]
[Result "0-1"]
[Round "05"]
[TimeControl "180+1"]
[Date "2022.08.02"]
[WhiteClock "0:00:02"]
[BlackClock "0:00:03"]

1. Nc3 {[%clk 0:03:00]}  d5 {[%clk 0:02:58]} 2. e4 {[%clk 0:02:59]}  d4 {[%clk 0:02:56]} 3. Nce2 {[%clk 0:02:59]}  e5 {[%clk 0:02:56]} 4. Nf3 {[%clk 0:03:00]}  Bd6 {[%clk 0:02:52]} 5. c3 {[%clk 0:02:57]}  c5 {[%clk 0:02:52]} 6. Ng3 {[%clk 0:02:58]}  Ne7 {[%clk 0:02:49]} 7. Bc4 {[%clk 0:02:54]}  O-O {[%clk 0:02:43]} 8. d3 {[%clk 0:02:45]}  Nbc6 {[%clk 0:02:41]} 9. O-O {[%clk 0:01:57]}  Na5 {[%clk 0:02:36]} 10. Bb5 {[%clk 0:01:55]}  a6 {[%clk 0:02:35]} 11. Ba4 {[%clk 0:01:56]}  b5 {[%clk 0:02:36]} 12. Bc2 {[%clk 0:01:57]}  h6 {[%clk 0:02:12]} 13. Nh4 {[%clk 0:01:48]}  Be6 {[%clk 0:02:08]} 14. Ngf5 {[%clk 0:01:30]}  Nxf5 {[%clk 0:02:01]} 15. Nxf5 {[%clk 0:01:29]}  Bxf5 {[%clk 0:01:51]} 16. exf5 {[%clk 0:01:29]}  Rc8 {[%clk 0:01:40]} 17. Qg4 {[%clk 0:01:19]}  Qf6 {[%clk 0:01:34]} 18. Bd2 {[%clk 0:01:13]}  dxc3 {[%clk 0:01:30]} 19. Bxc3 {[%clk 0:01:08]}  Nc6 {[%clk 0:01:28]} 20. Bb3 {[%clk 0:01:03]}  Nd4 {[%clk 0:01:20]} 21. Bxd4 {[%clk 0:01:02]}  exd4 {[%clk 0:01:21]} 22. Rac1 {[%clk 0:00:54]}  Rfe8 {[%clk 0:01:21]} 23. g3 {[%clk 0:00:52]}  Re5 {[%clk 0:01:16]} 24. Qg6 {[%clk 0:00:48]}  Rxf5 {[%clk 0:00:29]} 25. Qxf6 {[%clk 0:00:33]}  Rxf6 {[%clk 0:00:29]} 26. Rfe1 {[%clk 0:00:33]}  Kf8 {[%clk 0:00:28]} 27. Re4 {[%clk 0:00:33]}  g5 {[%clk 0:00:24]} 28. Rce1 {[%clk 0:00:33]}  c4 {[%clk 0:00:19]} 29. dxc4 {[%clk 0:00:25]}  bxc4 {[%clk 0:00:20]} 30. Rc1 {[%clk 0:00:26]}  d3 {[%clk 0:00:15]} 31. Rexc4 {[%clk 0:00:23]}  Rxc4 {[%clk 0:00:14]} 32. Rxc4 {[%clk 0:00:24]}  Be5 {[%clk 0:00:12]} 33. Rc8+ {[%clk 0:00:19]}  Ke7 {[%clk 0:00:11]} 34. Kf1 {[%clk 0:00:16]}  Bxb2 {[%clk 0:00:10]} 35. Ke1 {[%clk 0:00:16]}  Bd4 {[%clk 0:00:10]} 36. f4 {[%clk 0:00:16]}  gxf4 {[%clk 0:00:10]} 37. gxf4 {[%clk 0:00:16]}  Be3 {[%clk 0:00:05]} 38. Rc7+ {[%clk 0:00:16]}  Ke8 {[%clk 0:00:03]} 39. Rc3 {[%clk 0:00:10]}  d2+ {[%clk 0:00:03]} 40. Ke2 {[%clk 0:00:11]}  Bxf4 {[%clk 0:00:04]} 41. Rd3 {[%clk 0:00:10]}  Kf8 {[%clk 0:00:04]} 42. Bc4 {[%clk 0:00:08]}  Bg5 {[%clk 0:00:04]} 43. Bb3 {[%clk 0:00:08]}  Kg7 {[%clk 0:00:04]} 44. h4 {[%clk 0:00:09]}  Bxh4 {[%clk 0:00:04]} 45. Kxd2 {[%clk 0:00:09]}  Bg5+ {[%clk 0:00:04]} 46. Ke2 {[%clk 0:00:10]}  h5 {[%clk 0:00:05]} 47. Rd5 {[%clk 0:00:09]}  Kg6 {[%clk 0:00:04]} 48. Bc2+ {[%clk 0:00:09]}  Kh6 {[%clk 0:00:04]} 49. Bd3 {[%clk 0:00:09]}  h4 {[%clk 0:00:04]} 50. Rf5 {[%clk 0:00:08]}  h3 {[%clk 0:00:03]} 51. Rxf6+ {[%clk 0:00:07]}  Bxf6 {[%clk 0:00:04]} 52. Bxa6 {[%clk 0:00:07]}  Kg5 {[%clk 0:00:03]} 53. Bb7 {[%clk 0:00:08]}  Kf4 {[%clk 0:00:04]} 54. a4 {[%clk 0:00:08]}  Kg3 {[%clk 0:00:03]} 55. Kf1 {[%clk 0:00:08]}  Bd4 {[%clk 0:00:03]} 56. a5 {[%clk 0:00:09]}  f5 {[%clk 0:00:03]} 57. a6 {[%clk 0:00:03]}  f4 {[%clk 0:00:04]} 58. Bc8 {[%clk 0:00:03]}  h2 {[%clk 0:00:03]} 59. Bb7 {[%clk 0:00:02]}  f3 {[%clk 0:00:03]} 0-1


[Site "https://www.chess.com"]

[Event "Titled Tuesday Blitz August 02 Late 2022"]
[White "Marczuk, Dominik"]
[Black "Boros, Denes"]
[WhiteFideId "1111264"]
[BlackFideId "722340"]
[WhiteElo "1901"]
[BlackElo "2464"]
[Result "0-1"]
[Round "05"]
[TimeControl "180+1"]
[Date "2022.08.02"]
[WhiteClock "0:00:16"]
[BlackClock "0:01:31"]

1. e4 {[%clk 0:02:56]}  Nc6 {[%clk 0:03:00]} 2. Nf3 {[%clk 0:02:56]}  g6 {[%clk 0:02:58]} 3. d4 {[%clk 0:02:56]}  Bg7 {[%clk 0:02:59]} 4. d5 {[%clk 0:02:52]}  Ne5 {[%clk 0:02:59]} 5. Nxe5 {[%clk 0:02:52]}  Bxe5 {[%clk 0:03:00]} 6. f4 {[%clk 0:02:53]}  Bg7 {[%clk 0:03:00]} 7. Nc3 {[%clk 0:02:52]}  c6 {[%clk 0:03:01]} 8. Be3 {[%clk 0:02:45]}  d6 {[%clk 0:03:01]} 9. Qd2 {[%clk 0:02:35]}  Nf6 {[%clk 0:02:59]} 10. Be2 {[%clk 0:02:33]}  cxd5 {[%clk 0:02:54]} 11. exd5 {[%clk 0:02:33]}  O-O {[%clk 0:02:53]} 12. O-O {[%clk 0:02:33]}  a6 {[%clk 0:02:54]} 13. a4 {[%clk 0:02:32]}  Bf5 {[%clk 0:02:48]} 14. Bd3 {[%clk 0:02:29]}  Bxd3 {[%clk 0:02:42]} 15. Qxd3 {[%clk 0:02:30]}  Rc8 {[%clk 0:02:42]} 16. a5 {[%clk 0:02:27]}  Nd7 {[%clk 0:02:37]} 17. Bd4 {[%clk 0:02:14]}  Bxd4+ {[%clk 0:02:31]} 18. Qxd4 {[%clk 0:02:15]}  Qc7 {[%clk 0:02:32]} 19. Rfe1 {[%clk 0:02:13]}  Rfe8 {[%clk 0:02:32]} 20. Kh1 {[%clk 0:02:04]}  Qc5 {[%clk 0:02:31]} 21. Qd3 {[%clk 0:02:03]}  Nf6 {[%clk 0:02:30]} 22. Qf3 {[%clk 0:01:53]}  Qb4 {[%clk 0:02:23]} 23. Ra3 {[%clk 0:01:40]}  Qxb2 {[%clk 0:02:15]} 24. Rb3 {[%clk 0:01:39]}  Qxc2 {[%clk 0:02:15]} 25. Na4 {[%clk 0:01:25]}  Qd2 {[%clk 0:02:05]} 26. Rd1 {[%clk 0:00:43]}  Rc1 {[%clk 0:02:04]} 27. Rb1 {[%clk 0:00:25]}  Rec8 {[%clk 0:01:47]} 28. h3 {[%clk 0:00:20]}  Rxd1+ {[%clk 0:01:37]} 29. Qxd1 {[%clk 0:00:17]}  Qxf4 {[%clk 0:01:32]} 30. Rxb7 {[%clk 0:00:16]}  Rc1 {[%clk 0:01:31]} 0-1


[Site "https://www.chess.com"]

[Event "Titled Tuesday Blitz August 02 Late 2022"]
[White "Mardov, Dimitar"]
[Black "Blanco Ronquillo, Humberto L."]
[WhiteFideId "30919495"]
[BlackFideId "3504239"]
[WhiteElo "2185"]
[BlackElo "2423"]
[Result "1-0"]
[Round "05"]
[TimeControl "180+1"]
[Date "2022.08.02"]
[WhiteClock "0:00:09"]
[BlackClock "0:00:06"]

1. d4 {[%clk 0:02:48]}  d5 {[%clk 0:02:59]} 2. c4 {[%clk 0:02:45]}  c6 {[%clk 0:02:59]} 3. Nf3 {[%clk 0:02:45]}  Nf6 {[%clk 0:02:58]} 4. e3 {[%clk 0:02:45]}  Bf5 {[%clk 0:02:57]} 5. Nc3 {[%clk 0:02:45]}  e6 {[%clk 0:02:57]} 6. Nh4 {[%clk 0:02:46]}  Bg6 {[%clk 0:02:58]} 7. Qb3 {[%clk 0:02:44]}  Qc7 {[%clk 0:02:56]} 8. Bd2 {[%clk 0:02:44]}  Nbd7 {[%clk 0:02:54]} 9. O-O-O {[%clk 0:02:44]}  Ne4 {[%clk 0:02:32]} 10. Nxe4 {[%clk 0:02:37]}  Bxe4 {[%clk 0:02:31]} 11. f3 {[%clk 0:02:37]}  dxc4 {[%clk 0:02:31]} 12. Bxc4 {[%clk 0:02:36]}  Bd5 {[%clk 0:02:31]} 13. e4 {[%clk 0:02:23]}  Bxc4 {[%clk 0:02:28]} 14. Qxc4 {[%clk 0:02:24]}  Be7 {[%clk 0:02:28]} 15. g3 {[%clk 0:02:24]}  O-O {[%clk 0:02:15]} 16. Ng2 {[%clk 0:02:23]}  c5 {[%clk 0:02:10]} 17. Kb1 {[%clk 0:02:20]}  Nb6 {[%clk 0:01:50]} 18. Qc2 {[%clk 0:02:20]}  Rac8 {[%clk 0:01:44]} 19. Rc1 {[%clk 0:02:03]}  Qd7 {[%clk 0:01:38]} 20. dxc5 {[%clk 0:01:49]}  Bxc5 {[%clk 0:01:37]} 21. Bc3 {[%clk 0:01:27]}  Bb4 {[%clk 0:01:24]} 22. Rhd1 {[%clk 0:01:19]}  Qb5 {[%clk 0:01:07]} 23. Qb3 {[%clk 0:01:16]}  a5 {[%clk 0:00:56]} 24. a3 {[%clk 0:01:04]}  Qe2 {[%clk 0:00:56]} 25. Rd2 {[%clk 0:00:54]}  Qxf3 {[%clk 0:00:50]} 26. axb4 {[%clk 0:00:54]}  Nc4 {[%clk 0:00:49]} 27. Rd4 {[%clk 0:00:43]}  a4 {[%clk 0:00:19]} 28. Qc2 {[%clk 0:00:35]}  e5 {[%clk 0:00:16]} 29. Nh4 {[%clk 0:00:30]}  Qg4 {[%clk 0:00:15]} 30. Qd1 {[%clk 0:00:20]}  Qe6 {[%clk 0:00:13]} 31. Rd3 {[%clk 0:00:16]}  a3 {[%clk 0:00:11]} 32. b3 {[%clk 0:00:14]}  Nb6 {[%clk 0:00:08]} 33. Rd6 {[%clk 0:00:14]}  a2+ {[%clk 0:00:07]} 34. Kxa2 {[%clk 0:00:09]}  Ra8+ {[%clk 0:00:07]} 35. Kb2 {[%clk 0:00:10]}  Nc4+ {[%clk 0:00:07]} 36. bxc4 {[%clk 0:00:10]}  Qxc4 {[%clk 0:00:08]} 37. Qb3 {[%clk 0:00:09]}  Qe2+ {[%clk 0:00:06]} 38. Rd2 {[%clk 0:00:10]}  Qxe4 {[%clk 0:00:07]} 39. Rcd1 {[%clk 0:00:07]}  Qc6 {[%clk 0:00:07]} 40. Nf5 {[%clk 0:00:06]}  Qf6 {[%clk 0:00:07]} 41. Nd6 {[%clk 0:00:06]}  h6 {[%clk 0:00:07]} 42. Ne4 {[%clk 0:00:07]}  Qg6 {[%clk 0:00:07]} 43. Nc5 {[%clk 0:00:07]}  Kh7 {[%clk 0:00:07]} 44. Nd7 {[%clk 0:00:07]}  Rfe8 {[%clk 0:00:07]} 45. Nxe5 {[%clk 0:00:08]}  Qf5 {[%clk 0:00:06]} 46. Qxf7 {[%clk 0:00:07]}  Rxe5 {[%clk 0:00:06]} 47. Qxf5+ {[%clk 0:00:07]}  Rxf5 {[%clk 0:00:07]} 48. Rd7 {[%clk 0:00:07]}  Rf2+ {[%clk 0:00:07]} 49. R1d2 {[%clk 0:00:08]}  Rf3 {[%clk 0:00:07]} 50. Rxg7+ {[%clk 0:00:08]}  Kh8 {[%clk 0:00:06]} 51. Rxb7+ {[%clk 0:00:08]}  Kg8 {[%clk 0:00:06]} 52. Rg7+ {[%clk 0:00:09]}  Kf8 {[%clk 0:00:06]} 53. Rh7 {[%clk 0:00:09]} 1-0


[Site "https://www.chess.com"]

[Event "Titled Tuesday Blitz August 02 Late 2022"]
[White "Nakamura, Hikaru"]
[Black "Martinez Alcantara, Jose Eduardo"]
[WhiteFideId "2016192"]
[BlackFideId "3805662"]
[WhiteElo "2850"]
[BlackElo "2703"]
[Result "1-0"]
[Round "05"]
[TimeControl "180+1"]
[Date "2022.08.02"]
[WhiteClock "0:00:48"]
[BlackClock "0:00:03"]

1. Nf3 {[%clk 0:03:00]}  Nf6 {[%clk 0:02:59]} 2. d4 {[%clk 0:02:57]}  e6 {[%clk 0:02:59]} 3. Bf4 {[%clk 0:02:56]}  b6 {[%clk 0:02:59]} 4. e3 {[%clk 0:02:56]}  Bb7 {[%clk 0:02:59]} 5. h3 {[%clk 0:02:56]}  Be7 {[%clk 0:02:59]} 6. c4 {[%clk 0:02:56]}  O-O {[%clk 0:02:59]} 7. Nc3 {[%clk 0:02:57]}  Bb4 {[%clk 0:02:51]} 8. Bd3 {[%clk 0:02:53]}  d6 {[%clk 0:02:46]} 9. O-O {[%clk 0:02:50]}  Bxc3 {[%clk 0:02:41]} 10. bxc3 {[%clk 0:02:50]}  Nbd7 {[%clk 0:02:42]} 11. Nd2 {[%clk 0:02:50]}  e5 {[%clk 0:02:41]} 12. Bg3 {[%clk 0:02:50]}  Re8 {[%clk 0:02:39]} 13. Re1 {[%clk 0:02:50]}  h6 {[%clk 0:02:39]} 14. e4 {[%clk 0:02:48]}  Nf8 {[%clk 0:02:36]} 15. f3 {[%clk 0:02:45]}  Ne6 {[%clk 0:02:32]} 16. Bf2 {[%clk 0:02:45]}  Nh5 {[%clk 0:02:29]} 17. Nf1 {[%clk 0:02:41]}  Qg5 {[%clk 0:02:21]} 18. h4 {[%clk 0:02:16]}  Qg6 {[%clk 0:02:18]} 19. Bc2 {[%clk 0:02:13]}  Nhf4 {[%clk 0:02:12]} 20. Ng3 {[%clk 0:02:08]}  Qf6 {[%clk 0:01:47]} 21. Nf5 {[%clk 0:02:06]}  Qg6 {[%clk 0:01:43]} 22. Bg3 {[%clk 0:02:00]}  Nh5 {[%clk 0:01:37]} 23. Bh2 {[%clk 0:02:00]}  Nhf4 {[%clk 0:01:34]} 24. Qd2 {[%clk 0:01:56]}  Qf6 {[%clk 0:01:23]} 25. g3 {[%clk 0:01:55]}  Ng6 {[%clk 0:01:20]} 26. Kg2 {[%clk 0:01:50]}  Ne7 {[%clk 0:01:18]} 27. Bg1 {[%clk 0:01:43]}  Rad8 {[%clk 0:01:10]} 28. Rad1 {[%clk 0:01:42]}  g5 {[%clk 0:00:56]} 29. Be3 {[%clk 0:01:30]}  exd4 {[%clk 0:00:15]} 30. cxd4 {[%clk 0:01:11]}  Nxf5 {[%clk 0:00:08]} 31. exf5 {[%clk 0:01:11]}  g4 {[%clk 0:00:09]} 32. d5 {[%clk 0:01:10]}  gxf3+ {[%clk 0:00:09]} 33. Kf2 {[%clk 0:01:05]}  Nc5 {[%clk 0:00:08]} 34. Bd4 {[%clk 0:01:04]}  Re5 {[%clk 0:00:07]} 35. Bxe5 {[%clk 0:01:03]}  dxe5 {[%clk 0:00:08]} 36. Qc3 {[%clk 0:00:56]}  Re8 {[%clk 0:00:08]} 37. Re3 {[%clk 0:00:52]}  Bc8 {[%clk 0:00:07]} 38. Rde1 {[%clk 0:00:51]}  Bxf5 {[%clk 0:00:03]} 39. Rxf3 {[%clk 0:00:48]} 1-0


[Site "https://www.chess.com"]

[Event "Titled Tuesday Blitz August 02 Late 2022"]
[White "Naroditsky, Daniel"]
[Black "Oparin, Grigoriy"]
[WhiteFideId "2026961"]
[BlackFideId "24125890"]
[WhiteElo "2608"]
[BlackElo "2639"]
[Result "1/2-1/2"]
[Round "05"]
[TimeControl "180+1"]
[Date "2022.08.02"]
[WhiteClock "0:01:13"]
[BlackClock "0:01:56"]

1. e4 {[%clk 0:03:00]}  c6 {[%clk 0:03:00]} 2. Nc3 {[%clk 0:02:53]}  d5 {[%clk 0:03:00]} 3. Nf3 {[%clk 0:02:53]}  dxe4 {[%clk 0:02:58]} 4. Nxe4 {[%clk 0:02:54]}  Nf6 {[%clk 0:02:58]} 5. Qe2 {[%clk 0:02:54]}  Na6 {[%clk 0:02:58]} 6. Nxf6+ {[%clk 0:02:53]}  gxf6 {[%clk 0:02:59]} 7. d3 {[%clk 0:02:47]}  Qd5 {[%clk 0:02:55]} 8. h3 {[%clk 0:02:26]}  Bf5 {[%clk 0:02:53]} 9. g4 {[%clk 0:02:23]}  Bg6 {[%clk 0:02:51]} 10. Bg2 {[%clk 0:02:23]}  e6 {[%clk 0:02:39]} 11. Bd2 {[%clk 0:02:19]}  O-O-O {[%clk 0:02:29]} 12. O-O {[%clk 0:02:10]}  Bc5 {[%clk 0:02:20]} 13. Bc3 {[%clk 0:02:00]}  Be7 {[%clk 0:02:09]} 14. b4 {[%clk 0:01:45]}  Nc7 {[%clk 0:02:07]} 15. a4 {[%clk 0:01:41]}  Qd6 {[%clk 0:02:04]} 16. b5 {[%clk 0:01:38]}  Nd5 {[%clk 0:01:58]} 17. Bd2 {[%clk 0:01:32]}  c5 {[%clk 0:01:57]} 18. Nh4 {[%clk 0:01:24]}  f5 {[%clk 0:01:55]} 19. Nxg6 {[%clk 0:01:20]}  hxg6 {[%clk 0:01:56]} 20. a5 {[%clk 0:01:13]} 1/2-1/2


[Site "https://www.chess.com"]

[Event "Titled Tuesday Blitz August 02 Late 2022"]
[White "Paravyan, David"]
[Black "Grischuk, Alexander"]
[WhiteFideId "4194985"]
[BlackFideId "4126025"]
[WhiteElo "2569"]
[BlackElo "2762"]
[Result "1-0"]
[Round "05"]
[TimeControl "180+1"]
[Date "2022.08.02"]
[WhiteClock "0:00:36"]
[BlackClock "0:00:01"]

1. e4 {[%clk 0:02:57]}  e6 {[%clk 0:02:57]} 2. d4 {[%clk 0:02:57]}  d5 {[%clk 0:02:57]} 3. Nc3 {[%clk 0:02:58]}  Bb4 {[%clk 0:02:56]} 4. e5 {[%clk 0:02:58]}  c5 {[%clk 0:02:56]} 5. a3 {[%clk 0:02:59]}  Bxc3+ {[%clk 0:02:56]} 6. bxc3 {[%clk 0:03:00]}  Ne7 {[%clk 0:02:57]} 7. Qg4 {[%clk 0:03:01]}  cxd4 {[%clk 0:02:57]} 8. Qxg7 {[%clk 0:03:01]}  Rg8 {[%clk 0:02:57]} 9. Qxh7 {[%clk 0:03:01]}  Qc7 {[%clk 0:02:58]} 10. Qd3 {[%clk 0:03:01]}  Qxe5+ {[%clk 0:02:44]} 11. Ne2 {[%clk 0:03:01]}  dxc3 {[%clk 0:02:40]} 12. Qxc3 {[%clk 0:03:01]}  Qxc3+ {[%clk 0:02:20]} 13. Nxc3 {[%clk 0:03:02]}  a6 {[%clk 0:02:12]} 14. h4 {[%clk 0:03:00]}  Nbc6 {[%clk 0:02:09]} 15. Bg5 {[%clk 0:02:57]}  e5 {[%clk 0:01:56]} 16. O-O-O {[%clk 0:02:52]}  Be6 {[%clk 0:01:54]} 17. g3 {[%clk 0:02:49]}  Rc8 {[%clk 0:01:43]} 18. Bg2 {[%clk 0:02:39]}  e4 {[%clk 0:01:32]} 19. Kb2 {[%clk 0:01:50]}  Rg6 {[%clk 0:01:12]} 20. f3 {[%clk 0:01:47]}  f6 {[%clk 0:00:53]} 21. Bf4 {[%clk 0:01:45]}  f5 {[%clk 0:00:30]} 22. h5 {[%clk 0:01:44]}  Rg7 {[%clk 0:00:23]} 23. h6 {[%clk 0:01:38]}  Rh7 {[%clk 0:00:23]} 24. fxe4 {[%clk 0:01:39]}  fxe4 {[%clk 0:00:18]} 25. Bxe4 {[%clk 0:01:39]}  dxe4 {[%clk 0:00:14]} 26. Nxe4 {[%clk 0:01:40]}  Kf8 {[%clk 0:00:05]} 27. Ng5 {[%clk 0:01:41]}  Bf5 {[%clk 0:00:04]} 28. g4 {[%clk 0:01:37]}  Bg6 {[%clk 0:00:04]} 29. Nxh7+ {[%clk 0:01:22]}  Bxh7 {[%clk 0:00:05]} 30. Rd7 {[%clk 0:01:22]}  Ke8 {[%clk 0:00:04]} 31. Rxb7 {[%clk 0:01:07]}  Nd8 {[%clk 0:00:03]} 32. Rc7 {[%clk 0:01:02]}  Rxc7 {[%clk 0:00:03]} 33. Bxc7 {[%clk 0:01:03]}  Ne6 {[%clk 0:00:03]} 34. Bd6 {[%clk 0:01:02]}  Nd5 {[%clk 0:00:03]} 35. c4 {[%clk 0:01:01]}  Ne3 {[%clk 0:00:02]} 36. Re1 {[%clk 0:00:52]}  Nxc4+ {[%clk 0:00:03]} 37. Kc3 {[%clk 0:00:53]}  Kd7 {[%clk 0:00:02]} 38. Bb4 {[%clk 0:00:34]}  Nb6 {[%clk 0:00:02]} 39. Rd1+ {[%clk 0:00:35]}  Kc7 {[%clk 0:00:01]} 40. Rd6 {[%clk 0:00:36]}  Na4+ {[%clk 0:00:01]} 41. Kc4 {[%clk 0:00:36]} 1-0


[Site "https://www.chess.com"]

[Event "Titled Tuesday Blitz August 02 Late 2022"]
[White "Rasulov, Vugar"]
[Black "Koelle, Tobias"]
[WhiteFideId "13402390"]
[BlackFideId "16207378"]
[WhiteElo "2523"]
[BlackElo "2541"]
[Result "1-0"]
[Round "05"]
[TimeControl "180+1"]
[Date "2022.08.02"]
[WhiteClock "0:00:09"]
[BlackClock "0:00:06"]

1. d4 {[%clk 0:03:00]}  Nf6 {[%clk 0:02:52]} 2. c4 {[%clk 0:03:01]}  g6 {[%clk 0:02:50]} 3. Nc3 {[%clk 0:03:00]}  Bg7 {[%clk 0:02:51]} 4. e4 {[%clk 0:03:00]}  O-O {[%clk 0:02:51]} 5. h3 {[%clk 0:03:00]}  d6 {[%clk 0:02:51]} 6. Be3 {[%clk 0:03:00]}  e5 {[%clk 0:02:51]} 7. d5 {[%clk 0:02:59]}  Na6 {[%clk 0:02:52]} 8. Nf3 {[%clk 0:02:48]}  Nc5 {[%clk 0:02:49]} 9. Nd2 {[%clk 0:02:48]}  c6 {[%clk 0:02:48]} 10. g4 {[%clk 0:02:42]}  a5 {[%clk 0:02:41]} 11. Qc2 {[%clk 0:02:38]}  a4 {[%clk 0:02:37]} 12. Be2 {[%clk 0:02:30]}  cxd5 {[%clk 0:02:37]} 13. cxd5 {[%clk 0:02:30]}  Bd7 {[%clk 0:02:37]} 14. Bxc5 {[%clk 0:02:17]}  dxc5 {[%clk 0:02:36]} 15. O-O-O {[%clk 0:01:57]}  Ne8 {[%clk 0:02:17]} 16. d6 {[%clk 0:01:44]}  Qb8 {[%clk 0:02:09]} 17. Bb5 {[%clk 0:01:37]}  Bxb5 {[%clk 0:02:07]} 18. Nxb5 {[%clk 0:01:37]}  Nxd6 {[%clk 0:02:07]} 19. Nxd6 {[%clk 0:01:38]}  Qxd6 {[%clk 0:02:08]} 20. Nc4 {[%clk 0:01:38]}  Qc7 {[%clk 0:01:57]} 21. Ne3 {[%clk 0:01:37]}  Bh6 {[%clk 0:01:55]} 22. Rd5 {[%clk 0:01:32]}  a3 {[%clk 0:01:43]} 23. b3 {[%clk 0:01:31]}  Rfc8 {[%clk 0:01:41]} 24. Rhd1 {[%clk 0:01:20]}  b5 {[%clk 0:01:40]} 25. Kb1 {[%clk 0:01:13]}  Bxe3 {[%clk 0:01:38]} 26. fxe3 {[%clk 0:01:14]}  c4 {[%clk 0:01:36]} 27. b4 {[%clk 0:01:08]}  Ra4 {[%clk 0:01:26]} 28. Rxb5 {[%clk 0:01:06]}  Raa8 {[%clk 0:01:22]} 29. Rdd5 {[%clk 0:01:00]}  Rab8 {[%clk 0:01:15]} 30. Qc3 {[%clk 0:01:00]}  Rxb5 {[%clk 0:01:06]} 31. Rxb5 {[%clk 0:01:01]}  Qc6 {[%clk 0:01:01]} 32. Rd5 {[%clk 0:00:59]}  Rb8 {[%clk 0:01:00]} 33. Kc1 {[%clk 0:00:46]}  Qf6 {[%clk 0:00:42]} 34. Qxe5 {[%clk 0:00:46]}  Qxe5 {[%clk 0:00:38]} 35. Rxe5 {[%clk 0:00:46]}  Rxb4 {[%clk 0:00:38]} 36. Ra5 {[%clk 0:00:47]}  Rb2 {[%clk 0:00:36]} 37. Rxa3 {[%clk 0:00:47]}  c3 {[%clk 0:00:36]} 38. e5 {[%clk 0:00:44]}  Kf8 {[%clk 0:00:35]} 39. Ra7 {[%clk 0:00:36]}  Re2 {[%clk 0:00:32]} 40. e6 {[%clk 0:00:33]}  fxe6 {[%clk 0:00:31]} 41. a4 {[%clk 0:00:33]}  Rxe3 {[%clk 0:00:31]} 42. a5 {[%clk 0:00:34]}  Rxh3 {[%clk 0:00:29]} 43. Kc2 {[%clk 0:00:30]}  Rh2+ {[%clk 0:00:27]} 44. Kxc3 {[%clk 0:00:30]}  Ra2 {[%clk 0:00:27]} 45. Kb4 {[%clk 0:00:27]}  Kg8 {[%clk 0:00:24]} 46. a6 {[%clk 0:00:26]}  h5 {[%clk 0:00:24]} 47. g5 {[%clk 0:00:27]}  h4 {[%clk 0:00:24]} 48. Kb5 {[%clk 0:00:27]}  h3 {[%clk 0:00:24]} 49. Rd7 {[%clk 0:00:24]}  h2 {[%clk 0:00:24]} 50. Rd1 {[%clk 0:00:24]}  Kf7 {[%clk 0:00:23]} 51. Kb6 {[%clk 0:00:20]}  e5 {[%clk 0:00:19]} 52. a7 {[%clk 0:00:19]}  Ke6 {[%clk 0:00:20]} 53. Rh1 {[%clk 0:00:16]}  Rb2+ {[%clk 0:00:15]} 54. Kc7 {[%clk 0:00:16]}  Ra2 {[%clk 0:00:14]} 55. Kb7 {[%clk 0:00:17]}  Rb2+ {[%clk 0:00:14]} 56. Kc6 {[%clk 0:00:16]}  Ra2 {[%clk 0:00:13]} 57. Kb6 {[%clk 0:00:17]}  Rb2+ {[%clk 0:00:13]} 58. Kc7 {[%clk 0:00:17]}  Ra2 {[%clk 0:00:12]} 59. Kb7 {[%clk 0:00:13]}  Rb2+ {[%clk 0:00:04]} 60. Kc8 {[%clk 0:00:13]}  Rc2+ {[%clk 0:00:03]} 61. Kb8 {[%clk 0:00:12]}  Ra2 {[%clk 0:00:03]} 62. a8=Q {[%clk 0:00:09]}  Rxa8+ {[%clk 0:00:04]} 63. Kxa8 {[%clk 0:00:10]}  Kf5 {[%clk 0:00:05]} 64. Kb7 {[%clk 0:00:10]}  Kf4 {[%clk 0:00:05]} 65. Rxh2 {[%clk 0:00:09]}  e4 {[%clk 0:00:05]} 66. Kc6 {[%clk 0:00:10]}  e3 {[%clk 0:00:05]} 67. Kd5 {[%clk 0:00:10]}  Kg3 {[%clk 0:00:05]} 68. Re2 {[%clk 0:00:08]}  Kf3 {[%clk 0:00:06]} 69. Rxe3+ {[%clk 0:00:08]}  Kxe3 {[%clk 0:00:06]} 70. Ke5 {[%clk 0:00:09]} 1-0


[Site "https://www.chess.com"]